Cogmind - Beta 16.1 @@@ ROGUE MODE // 2026.02.14 @ 11:48:17 Player: beans Result: Destroyed by H-61 Shepherd with Heavy Assault Cannon Performance ------------- Evolutions (4) 2000 Regions Visited (14) 2800 Robots Destroyed (106) 530 Value Destroyed (3507) 3507 Prototype IDs (47) 940 Alien Tech Used (0) 0 Bonus (797) 797 TOTAL SCORE: 10574 Bonus ------- High Alert Combat Kills 11 Follower Combat Kills 661 Aligned with FarCom 300 Met Data Miner 300 Friendly Fire -475 Cogmind --------- Core Integrity 0/850 Matter 300/300 Energy 350/350 System Corruption 6% Temperature Cool (0) Movement Core (100) Ox1 Location -6/Factory Parts ------- > --- POWER (1) -------- (None) > --- PROPULSION (5) --- (None) > --- UTILITY (7) ------ High-capacity Battery Enhanced Optical Array Core Analyzer Armor Integrity Analyzer > --- WEAPON (2) ------- (None) > --- INVENTORY (5) ---- Advanced Heat Sink Faulty Experimental Targeting Computer System Shield Peak State ------------ > --- POWER ------------ Reinforced Deuterium Engine > --- PROPULSION ------- Gravmag Array Gravmag Array > --- UTILITY ---------- Energy Well Improved Phase Shifter Layered Medium Armor Plating Medium Reflective Plating EM Shield Dynamic Insulation System > --- WEAPON ----------- Heavy Machine Gun Magnetic Acceleration Cannon > --- INVENTORY -------- Gravmag Array Barrage Gun Enhanced Flamer Scythe [Rating: 65] Favorites ----------- Power Micro Nuclear Core Engine Improved Deuterium Engine Power Core Micro Nuclear Core Reactor Cold Fusion Reactor Propulsion Aerolev Unit Treads Light Treads Leg Aluminum Leg Wheel Compact Wheel Hover Unit Aerolev Unit Utility Improved Heat Sink Device Improved Heat Sink Storage High-capacity Battery Processor Improved Signal Interpreter Hackware Improved Hacking Suite Protection Improved Light Armor Plating Weapon Makeshift Spear Energy Gun Medium Laser Energy Cannon Plasma Cannon Ballistic Gun Gauss Rifle Ballistic Cannon Magnetic Acceleration Cannon Launcher Advanced EMP Blaster Special Weapon Enhanced Flamer Impact Weapon Impact Mace Slashing Weapon Longsword +1 Piercing Weapon Makeshift Spear Special Melee Weapon Dirty Datajack Build | -11 -10 -10 -10 -9 -8 -8 -7 -7 -7 -7 -6 -6 -6 -6 ------- Run | Yrd Mat Min Exi Min Mat Sto Fac Low Low Dat Pro Fac Was Fac Slots Evolved 8 | . . . . . 4 . 2 . . . . 2 . . Power . | . . . . . . . . . . . . . . . Propulsion 3 | . . . . . 2 . . . . . . 1 . . Utility 5 | . . . . . 2 . 2 . . . . 1 . . Weapon . | . . . . . . . . . . . . . . . Parts Attached 111 | 5 1 2 1 . 10 29 11 11 2 . 6 13 2 18 Power 15 | 1 . 1 . . 2 4 2 1 . . . 2 . 2 Engine 9 | 1 . . . . 1 3 1 1 . . . 2 . . Core 5 | . . 1 . . 1 1 1 . . . . . . 1 Reactor 1 | . . . . . . . . . . . . . . 1 Propulsion 26 | 2 . . . . 2 9 2 4 . . 3 2 . 2 Treads 1 | . . . . . . . . 1 . . . . . . Leg 10 | 2 . . . . . 2 . 3 . . 3 . . . Wheel 4 | . . . . . . 4 . . . . . . . . Hover 11 | . . . . . 2 3 2 . . . . 2 . 2 Flight . | . . . . . . . . . . . . . . . Utility 32 | . . 1 1 . 3 6 3 1 1 . 2 5 2 7 Device 16 | . . 1 . . 2 5 2 . 1 . 1 1 2 1 Storage 3 | . . . . . . . . . . . . 1 . 2 Processor 7 | . . . 1 . . 1 . . . . . 1 . 4 Hackware 1 | . . . . . . . . . . . 1 . . . Protection 5 | . . . . . 1 . 1 1 . . . 2 . . Artifact . | . . . . . . . . . . . . . . . Weapon 38 | 2 1 . . . 3 10 4 5 1 . 1 4 . 7 Energy Gun 10 | 2 1 . . . 3 3 1 . . . . . . . Energy Cannon 3 | . . . . . . 2 1 . . . . . . . Ballistic Gun 14 | . . . . . . 3 . 2 1 . 1 2 . 5 Ballistic Cannon 1 | . . . . . . . . . . . . 1 . . Launcher 1 | . . . . . . 1 . . . . . . . . Special Weapon 4 | . . . . . . . 1 1 . . . . . 2 Impact Weapon 1 | . . . . . . . 1 . . . . . . . Slashing Weapon 2 | . . . . . . 1 . . . . . 1 . . Piercing Weapon 1 | . . . . . . . . 1 . . . . . . Special Melee Weapon 1 | . . . . . . . . 1 . . . . . . Unidentified Prototypes 14 | . . 1 . . 2 6 2 . . . 1 . . 2 Corrupted Parts 2 | . . . . . . . . 1 . . . . 1 . System Corruption 7 | . . . . . . . . 2 . . . . 5 . Parts Lost 54 | . . . . . 2 13 3 11 4 . 1 1 5 14 Power 7 | . . . . . 1 2 . 1 1 . . . . 2 Propulsion 16 | . . . . . . 4 2 4 2 . . . . 4 Utility 20 | . . . . . 1 5 1 3 1 . 1 1 5 2 Weapon 11 | . . . . . . 2 . 3 . . . . . 6 Highest Loss Streak 6 | . . . . . 1 6 2 3 3 . 1 1 5 5 To Critical Strikes . | . . . . . . . . . . . . . . . Average Backups 3 | . 1 4 4 4 4 4 3 3 2 2 4 4 4 3 Power . | . . . . . . . . . . . . . . . Propulsion . | . . . . . . . . . . . . . 1 . Utility . | . . 2 2 1 1 1 1 1 . . . . . 1 Weapon 2 | . . 1 1 2 2 1 1 1 1 2 4 4 3 1 Tool/Special . | . . . . . . . . . . . . . . . Unused Backups 8 | 2 . . 1 . . . 1 . . . . 1 . 3 Power . | . . . . . . . . . . . . . . . Propulsion 2 | 2 . . . . . . . . . . . . . . Utility 4 | . . . 1 . . . . . . . . . . 3 Weapon 2 | . . . . . . . 1 . . . . 1 . . Tool/Special . | . . . . . . . . . . . . . . . Average Slot Usage (%) 59 | . 71 71 77 85 59 72 82 56 43 17 32 59 54 59 Engine 2 | . 14 10 . . 1 5 5 . 3 . . 3 6 1 Core 2 | . . 3 14 14 6 3 1 4 . . . . . . Leg 5 | . 28 28 28 28 6 . . 2 6 . 10 . . . Hover 6 | . . . . . 6 14 20 . . . . 12 13 10 Device 14 | . . . . . 4 15 27 22 17 7 6 11 12 5 Storage 1 | . . . . . . . . . . . . 5 4 11 Processor 6 | . . . 6 14 9 10 7 7 5 . . 3 . 12 Protection 1 | . . . . . 8 . 3 4 . . . 2 8 . Energy Gun 5 | . 28 28 28 28 18 11 5 . . . . . . . Energy Cannon 1 | . . . . . . 4 6 . . . . . . . Ballistic Gun 2 | . . . . . . 1 2 2 1 1 5 3 4 7 Piercing Weapon 2 | . . . . . . . . 1 7 7 7 4 . . Peak Build Rating 65 | 5 5 19 12 12 29 36 53 42 35 12 30 62 65 60 Average Rating 30 | 2 5 6 10 12 21 27 43 30 25 9 20 50 49 47 On Entrance 21 | . 5 5 9 12 12 26 36 41 28 12 9 30 62 35 Avg Prop Armor Cover (%) 12 | . . . . . 4 9 . . . . . 13 . . Naked Turns . | . . . . . . . . . . . . . . . Heaviest Build 53 | 8 9 9 9 9 14 22 37 28 21 8 8 51 53 36 Greatest Support 49 | 20 20 20 20 20 20 48 33 30 30 3 48 48 40 49 Greatest Overweight (x) 6 | . . . . . 1 4 2 6 6 2 2 2 1 1 Average Overweight (x) . | . . . . . . . 1 1 1 1 . . . . Largest Inventory Capacity 5 | 5 5 5 5 5 5 5 5 5 5 5 5 5 5 5 Average Capacity 5 | 5 5 5 5 5 5 5 5 5 5 5 5 5 5 5 Most Carried 5 | 3 4 5 5 5 5 5 5 5 5 3 5 5 5 5 Average Carried 4 | . 1 4 4 5 5 4 4 4 3 2 4 4 5 4 Final Capacity 5 | 5 5 5 5 5 5 5 5 5 5 5 5 5 5 5 Final Carried 5 | . 4 5 5 5 5 5 5 4 2 3 5 5 5 3 Class Distribution -------------------- 81% | Mutant 18% | Scavenger-Mutant Dominant Class ---------------- Mutant | -10/Materials Mutant | -10/Mines Mutant | -10/Exiles Mutant | -9/Mines Mutant | -8/Materials Scavenger-Mutant | -8/Storage Mutant | -7/Factory Mutant | -7/Lower Caves Mutant | -7/Lower Caves Mutant | -7/Data Miner Scavenger-Mutant | -6/Proximity Caves Mutant | -6/Factory Mutant | -6/Waste Mutant | -6/Factory Resources | -11 -10 -10 -10 -9 -8 -8 -7 -7 -7 -7 -6 -6 -6 -6 ----------- Run | Yrd Mat Min Exi Min Mat Sto Fac Low Low Dat Pro Fac Was Fac Matter Collected 2481 | 250 10 . . 67 139 374 200 216 49 . 152 140 . 884 Remotely 98 | . . . . . . 98 . . . . . . . . Salvage Created 4920 | . 104 . . 51 645 1680 680 438 59 . 56 165 . 1042 Parts 215 | . 7 . . 2 26 81 22 16 2 . 2 9 . 48 Haulers Intercepted 7 | . . . . . 1 3 1 . . . . 1 . 1 Recyclers Shooed 3 | . . . . . . 1 . . . . . . . 2 Parts Field Recycled . | . . . . . . . . . . . . . . . Retrieved Matter . | . . . . . . . . . . . . . . . Parts Self-Destructed 23 | . . . . . . . . 13 6 . 4 . . . Prevented 1 | . . . . . . . . 1 . . . . . . Parts Restored . | . . . . . . . . . . . . . . . Kills | -11 -10 -10 -10 -9 -8 -8 -7 -7 -7 -7 -6 -6 -6 -6 ------- Run | Yrd Mat Min Exi Min Mat Sto Fac Low Low Dat Pro Fac Was Fac Combat Hostiles Destroyed 66 | . 1 . . 1 7 26 11 9 1 . 1 1 . 8 Melee 13 | . . . . . . 3 . 6 1 . 1 1 . 1 Guns 29 | . 1 . . 1 7 11 4 . . . . . . 5 Cannons 20 | . . . . . . 11 6 3 . . . . . . Classes Destroyed 16 | . 3 . . 1 4 3 3 1 1 . . . . . Worker 10 | . 1 . . . . 2 4 . . . . . . 3 Builder 1 | . . . . . . . 1 . . . . . . . Tunneler 2 | . . . . . . . 1 . . . . . . 1 Hauler 7 | . . . . . 1 3 1 . . . . 1 . 1 Recycler 10 | . . . . . 3 3 1 . . . . . . 3 Mechanic 2 | . . . . . . 1 . . . . . 1 . . Operator 2 | . . . . . . 1 1 . . . . . . . Watcher 5 | . 1 . . . . 1 . . . . . . . 3 Swarmer 10 | . . . . . . 4 3 3 . . . . . . Grunt 33 | . 1 . . . 5 15 5 4 . . . . . 3 Brawler 1 | . . . . 1 . . . . . . . . . . Duelist 1 | . . . . . . . . 1 . . . . . . Sentry 10 | . . . . . 1 6 . 1 . . . . . 2 Hunter 6 | . . . . . 1 1 1 . . . 1 . . 2 Programmer 4 | . . . . . . . 2 . . . . 1 . 1 Savage 1 | . . . . . . . . 1 . . . . . . Mutant 1 | . . . . . . . . . 1 . . . . . Best Kill Streak 7 | . 2 . . 1 3 7 6 3 1 . 1 2 . 7 Combat Bots Only 7 | . 1 . . 1 3 7 4 3 1 . 1 1 . 5 Max Kills in Single Turn 2 | . 1 . . 1 1 2 2 1 1 . 1 1 . 2 Gunslinging . | . . . . . . . . . . . . . . . Exploded . | . . . . . . . . . . . . . . . Melee 1 | . . . . . . 1 . 1 1 . 1 1 . 1 Uniques/NPCs Destroyed . | . . . . . . . . . . . . . . . Combat | -11 -10 -10 -10 -9 -8 -8 -7 -7 -7 -7 -6 -6 -6 -6 -------- Run | Yrd Mat Min Exi Min Mat Sto Fac Low Low Dat Pro Fac Was Fac Hostile Shots Fired 714 | . 7 . . 6 41 150 43 127 50 . 39 4 5 242 Missed 221 | . 2 . . 2 7 36 8 41 19 . 9 2 . 95 Hits 493 | . 5 . . 4 34 114 35 86 31 . 30 2 5 147 Melee 19 | . . . . 2 . . . 1 11 . . . 5 . Projectile 474 | . 5 . . 2 34 114 35 85 20 . 30 2 . 147 Critical Strikes 14 | . . . . . . 5 . . . . . . 3 6 Damage Taken 7161 | . 113 . . 78 568 1435 468 1253 412 . 421 77 266 2070 Core 2116 | . 41 . . 37 115 373 12 343 212 . 101 55 147 680 Absorbed by Shields 98 | . . . . . . 98 . . . . . . . . Regen/Repaired (Parts) 71 | . . . . . . 71 . . . . . . . . Core Remaining (%) 45 | 100 . . . 68 . 11 . . . . 4 . . . Volleys Fired 265 | . 8 . . 6 33 87 43 19 . . 10 . 4 55 Largest 2 | . 2 . . 2 2 2 2 2 . . 1 . 2 2 Hottest 160 | . 100 . . 100 122 130 160 160 . . 28 . 74 110 Shots Fired 470 | . 16 . . 12 65 166 76 21 . . 10 . 8 96 Gun 363 | . 16 . . 12 65 119 40 12 . . 10 . 4 85 Cannon 92 | . . . . . . 47 33 8 . . . . 4 . Launcher . | . . . . . . . . . . . . . . . Special 15 | . . . . . . . 3 1 . . . . . 11 Kinetic 129 | . . . . . . 6 10 10 . . 10 . 8 85 Thermal 336 | . 16 . . 12 65 159 63 10 . . . . . 11 Explosive . | . . . . . . . . . . . . . . . Electromagnetic 1 | . . . . . . 1 . . . . . . . . Robot Hit Streak 14 | . 3 . . 7 9 14 12 7 . . 3 . . 14 Robot Miss Streak 6 | . 2 . . 4 3 4 6 4 . . 1 . . 5 Penetration Max 2 | . . . . . . . . . . . . . . 2 Secondary Targets 4 | . . . . . 1 2 . . . . . . . 1 Max Gunslinging Chain 1 | . . . . . 1 1 . . . . . . . 1 Shots Hit Robots 382 | . 8 . . 8 40 109 53 60 8 . 12 14 . 70 Core Hits 181 | . 5 . . 2 18 55 29 22 3 . 6 4 . 37 Critical Kills 2 | . . . . . . . . 1 . . . . . 1 Critical Parts Destroyed 4 | . . . . . . . 4 . . . . . . . Critical Strikes 29 | . 1 . . . 2 8 4 6 . . 1 1 . 6 Burn 14 | . 1 . . . 2 8 . . . . . . . 3 Destroy 1 | . . . . . . . . . . . . . . 1 Smash 5 | . . . . . . . 4 1 . . . . . . Sever 6 | . . . . . . . . 4 . . . . . 2 Impale 3 | . . . . . . . . 1 . . 1 1 . . Melee Attacks 136 | . . . . . . 5 7 57 20 . 9 24 . 14 Impact 17 | . . . . . . . 7 10 . . . . . . Slashing 41 | . . . . . . 5 . 15 . . . 7 . 14 Piercing 78 | . . . . . . . . 32 20 . 9 17 . . Sneak Attacks 22 | . . . . . . . 5 14 . . . 2 . 1 Combat Hostiles 1 | . . . . . . . . 1 . . . . . . Follow-up Attacks 1 | . . . . . . . . . . . . 1 . . Damage Inflicted 9501 | . 113 . . 100 696 2413 1760 1457 200 . 277 508 . 1977 Guns 4753 | . 113 . . 100 696 1561 686 150 . . 137 . . 1310 Cannons 1327 | . . . . . . 727 424 176 . . . . . . Explosions 235 | . . . . . . . . . . . . . . 235 Melee 3098 | . . . . . . 125 650 1131 200 . 140 508 . 344 Ramming . | . . . . . . . . . . . . . . . Kinetic 1698 | . . . . . . 77 56 118 . . 137 . . 1310 Thermal 4693 | . 113 . . 100 696 2199 1054 208 . . . . . 323 Explosive . | . . . . . . . . . . . . . . . Electromagnetic 12 | . . . . . . 12 . . . . . . . . Impact 813 | . . . . . . . 650 163 . . . . . . Slashing 1312 | . . . . . . 125 . 681 . . . 162 . 344 Piercing 973 | . . . . . . . . 287 200 . 140 346 . . Highest Corruption 6 | . 3 3 3 3 . . 3 5 5 5 5 . 6 6 Average Corruption 4 | . 2 3 3 3 . . 2 3 5 5 5 . 3 6 Corruption Purged . | . . . . . . . . . . . . . . . Corruption Blocked 8 | . . . . . . . . . . . . 4 4 . Effects 107 | . . 4 5 7 . . 3 29 18 2 19 . 2 18 Message Errors 32 | . . . 2 1 . . 3 12 8 . 1 . 1 4 Matter Fused 22 | . . 2 1 1 . . . 6 3 1 6 . . 2 Heat Flow Errors 14 | . . 1 . 1 . . . 3 1 . 5 . 1 2 Energy Discharges 16 | . . . . 3 . . . 3 3 . 2 . . 5 Parts Rejected 2 | . . . . . . . . . . . 1 . . 1 Parts Fused 2 | . . . 1 . . . . 1 . . . . . . Data Loss (minor) 9 | . . . 1 . . . . 3 2 . 2 . . 1 Data Loss (major) 8 | . . 1 . 1 . . . 1 . 1 2 . . 2 Alerts 1 | . . . . . . . . . 1 . . . . . Weapon Failures 1 | . . . . . . . . . . . . . . 1 Overload Shots . | . . . . . . . . . . . . . . . Overflow Damage 692 | . . . . . . 10 552 14 1 . 8 55 . 52 Projectiles 32 | . . . . . . 10 20 2 . . . . . . Explosions 52 | . . . . . . . . . . . . . . 52 Melee 608 | . . . . . . . 532 12 1 . 8 55 . . Knockbacks 3 | . . . . . . . 3 . . . . . . . Impact 2 | . . . . . . . 2 . . . . . . . Kinetic . | . . . . . . . . . . . . . . . Secondary 1 | . . . . . . . 1 . . . . . . . Self-Inflicted Damage 114 | . . . . . . . . . . . . 17 . 97 Shots 3 | . . . . . . . . . . . . 1 . 2 Rammed . | . . . . . . . . . . . . . . . Targets Rammed . | . . . . . . . . . . . . . . . Kicked . | . . . . . . . . . . . . . . . Crushed . | . . . . . . . . . . . . . . . Highest Temperature 473 | . 226 251 . 135 473 298 179 192 104 . 178 . 118 193 Average Temperature 94 | . 118 132 . 58 170 101 38 42 53 . 77 . 52 40 Received Heat Transfer 1722 | . 51 . . . 279 633 63 300 66 . 48 . . 282 Effects 11 | . . . . . 6 5 . . . . . . . . Energy Bleed 2 | . . . . . . 2 . . . . . . . . Interference 6 | . . . . . 3 3 . . . . . . . . Matter Decay 1 | . . . . . 1 . . . . . . . . . Damage (minor) 1 | . . . . . 1 . . . . . . . . . Damage (major) 1 | . . . . . 1 . . . . . . . . . Siege Activations . | . . . . . . . . . . . . . . . Martial Activations . | . . . . . . . . . . . . . . . Shielding Activations . | . . . . . . . . . . . . . . . Robots Disrupted . | . . . . . . . . . . . . . . . Combat Hostiles . | . . . . . . . . . . . . . . . Robots Corrupted 5 | . . . . . . . 5 . . . . . . . Combat Hostiles 1 | . . . . . . . 1 . . . . . . . Parts Fried 7 | . . . . . . . 7 . . . . . . . Impact Corruptions 19 | . . . . . . . 18 1 . . . . . . Robots Melted 3 | . . . . . . 1 . . . . . . . 2 Combat Hostiles 3 | . . . . . . 1 . . . . . . . 2 Parts Melted 15 | . . . . 2 1 6 3 . . . . . . 3 Heat Transferred 10926 | . 407 . . 296 1665 4588 2225 425 . . . . . 1320 Parts Sabotaged . | . . . . . . . . . . . . . . . Parts Stolen 6 | . . . . . . . . . 6 . . . . . Parts Stripped . | . . . . . . . . . . . . . . . Power Chain Reactions . | . . . . . . . . . . . . . . . Alert | -11 -10 -10 -10 -9 -8 -8 -7 -7 -7 -7 -6 -6 -6 -6 ------- Run | Yrd Mat Min Exi Min Mat Sto Fac Low Low Dat Pro Fac Was Fac Maximum Alert Level 2 | . . . . . . 2 . . . . . . . 1 Low Security (%) 82 | 100 100 100 . 100 100 63 100 . . . . 100 100 41 Level 1 16 | . . . . . . 32 . . . . . . . 58 Level 2 . | . . . . . . 3 . . . . . . . . Level 3 . | . . . . . . . . . . . . . . . Level 4 . | . . . . . . . . . . . . . . . Level 5 . | . . . . . . . . . . . . . . . High Security . | . . . . . . . . . . . . . . . Max Security . | . . . . . . . . . . . . . . . Peak Influence 411 | . 35 13 . 81 163 411 182 . . . . 30 1 333 Initial 182 | . . 13 . . 4 59 182 . . . . . . . Average 90 | . 5 2 . 40 92 175 69 . . . . 2 . 165 Influence Increases 2804 | . 42 . . 153 293 829 332 307 95 . 152 62 2 537 Destroy 0b10 Robot/C 1680 | . 20 . . 100 200 520 220 280 80 . 80 20 . 160 Destroy 0b10 Robot/NC 205 | . 10 . . . 20 55 45 . . . . 20 . 55 Destroy Leader 396 | . 12 . . 20 42 118 52 20 10 . 40 14 . 68 Allied During Kill 77 | . . . . 18 15 . . 7 5 . 32 . . . Successful Hack 20 | . . . . . . 11 . . . . . . . 9 Disable Machine 300 | . . . . . 15 45 15 . . . . . . 225 Destroy Structure 36 | . . . . . 1 5 . . . . . 8 2 20 Lose Combat Pursuer 90 | . . . . 15 . 75 . . . . . . . . Influence Decreases 2658 | . 7 35 . 140 163 570 588 376 172 . 152 62 2 391 Entered New Map 405 | . . 22 . . 9 84 220 55 15 . . . . . Time Decay 1786 | . 7 13 . 120 114 356 338 245 137 . 152 61 2 241 Lost Part 406 | . . . . . 20 130 30 76 20 . . . . 130 Lost Ally 61 | . . . . 20 20 . . . . . . 1 . 20 Squads Dispatched 15 | . . . . . 1 4 2 . . . . 2 . 6 Investigation . | . . . . . . . . . . . . . . . Extermination 5 | . . . . . . . 1 . . . . 2 . 2 Reinforcement 8 | . . . . . 1 3 1 . . . . . . 3 Assault 1 | . . . . . . 1 . . . . . . . . Garrison 1 | . . . . . . . . . . . . . . 1 Intercept . | . . . . . . . . . . . . . . . Searches Triggered . | . . . . . . . . . . . . . . . Construction Impeded . | . . . . . . . . . . . . . . . Haulers Reinforced 2 | . . . . . . . 1 . . . . . . 1 Active Scanning Responses . | . . . . . . . . . . . . . . . Cargo Convoy Interrupts . | . . . . . . . . . . . . . . . Stealth | -11 -10 -10 -10 -9 -8 -8 -7 -7 -7 -7 -6 -6 -6 -6 --------- Run | Yrd Mat Min Exi Min Mat Sto Fac Low Low Dat Pro Fac Was Fac Distress Signals 8 | . 1 . . . 2 4 . . . . . . . 1 Communications Jammed . | . . . . . . . . . . . . . . . Distress Signals . | . . . . . . . . . . . . . . . Times Spotted 135 | . 4 . . 6 15 37 15 19 9 . 4 3 6 17 Peak Tracking Total 10 | . 4 . . 2 6 10 3 5 5 . 1 1 6 5 Tactical Retreats 6 | . . . . 1 . 5 . . . . . . . . Traps | -11 -10 -10 -10 -9 -8 -8 -7 -7 -7 -7 -6 -6 -6 -6 ------- Run | Yrd Mat Min Exi Min Mat Sto Fac Low Low Dat Pro Fac Was Fac Traps Triggered 13 | . 2 . . . . 4 1 . . . . 4 . 2 Indirectly . | . . . . . . . . . . . . . . . Trap Hack Attempts . | . . . . . . . . . . . . . . . Triggered . | . . . . . . . . . . . . . . . Disarmed . | . . . . . . . . . . . . . . . Reprogrammed . | . . . . . . . . . . . . . . . Reused . | . . . . . . . . . . . . . . . Traps Extracted . | . . . . . . . . . . . . . . . Installed . | . . . . . . . . . . . . . . . Triggered . | . . . . . . . . . . . . . . . Machines | -11 -10 -10 -10 -9 -8 -8 -7 -7 -7 -7 -6 -6 -6 -6 ---------- Run | Yrd Mat Min Exi Min Mat Sto Fac Low Low Dat Pro Fac Was Fac Machines Disabled 21 | . . . . . 1 3 1 . 1 . . . . 15 Max in Single Turn 14 | . . . . . 1 1 1 . 1 . . . . 14 Garrison Access 1 | . . . . . . . . . . . . . . 1 Machines Repaired . | . . . . . . . . . . . . . . . Machines Dismantled . | . . . . . . . . . . . . . . . Machines Sabotaged . | . . . . . . . . . . . . . . . Overloaded Fab Kills . | . . . . . . . . . . . . . . . Hacking | -11 -10 -10 -10 -9 -8 -8 -7 -7 -7 -7 -6 -6 -6 -6 --------- Run | Yrd Mat Min Exi Min Mat Sto Fac Low Low Dat Pro Fac Was Fac Machines Accessed 14 | . . 1 1 . . 3 . 2 . 4 1 . . 2 Terminals 3 | . . . . . . 2 . . . . 1 . . . Fabricators 1 | . . . . . . . . . . . . . . 1 Repair Stations 1 | . . . . . . 1 . . . . . . . . Recycling Units . | . . . . . . . . . . . . . . . Scanalyzers . | . . . . . . . . . . . . . . . Garrison Access 1 | . . . . . . . . . . . . . . 1 Total Hacks 47 | . . 1 1 . . 6 . 2 . 33 1 . . 3 Successful 45 | . . 1 1 . . 4 . 2 . 33 1 . . 3 Failed 2 | . . . . . . 2 . . . . . . . . Catastrophic . | . . . . . . . . . . . . . . . Database Lockouts . | . . . . . . . . . . . . . . . Manual 2 | . . . 1 . . . . 1 . . . . . . Terminals 4 | . . . . . . 3 . . . . 1 . . . Fabricators 1 | . . . . . . . . . . . . . . 1 Repair Stations 3 | . . . . . . 3 . . . . . . . . Recycling Units . | . . . . . . . . . . . . . . . Scanalyzers . | . . . . . . . . . . . . . . . Garrison Access 2 | . . . . . . . . . . . . . . 2 Terminal Hacks 40 | . . 1 1 . . 2 . 2 . 33 1 . . . Record 12 | . . . . . . . . . . 11 1 . . . Part Schematic 12 | . . . . . . . . . . 12 . . . . Robot Schematic 7 | . . . . . . . . . . 7 . . . . Prototype ID Bank 3 | . . . . . . . . . . 3 . . . . Open Door 5 | . . 1 . . . 2 . 2 . . . . . . Proto ID Catalog 1 | . . . 1 . . . . . . . . . . . Fabricator Hacks 1 | . . . . . . . . . . . . . . 1 Build 1 | . . . . . . . . . . . . . . 1 Repair Station Hacks 2 | . . . . . . 2 . . . . . . . . Scan Component 1 | . . . . . . 1 . . . . . . . . Repair 1 | . . . . . . 1 . . . . . . . . Recycling Unit Hacks . | . . . . . . . . . . . . . . . Scanalyzer . | . . . . . . . . . . . . . . . Garrison Access Hacks 2 | . . . . . . . . . . . . . . 2 Unlock Access 1 | . . . . . . . . . . . . . . 1 Seal Access 1 | . . . . . . . . . . . . . . 1 Unauthorized Hacks . | . . . . . . . . . . . . . . . Terminals . | . . . . . . . . . . . . . . . Fabricators . | . . . . . . . . . . . . . . . Repair Stations . | . . . . . . . . . . . . . . . Recycling Units . | . . . . . . . . . . . . . . . Scanalyzers . | . . . . . . . . . . . . . . . Garrison Access . | . . . . . . . . . . . . . . . Data Cores Recovered . | . . . . . . . . . . . . . . . Used . | . . . . . . . . . . . . . . . Hacking Detections 3 | . . . . . . 2 . . . . . . . 1 Full Trace Events . | . . . . . . . . . . . . . . . Feedback Events . | . . . . . . . . . . . . . . . Feedback Blocked . | . . . . . . . . . . . . . . . Robot Schematics Acquired 7 | . . . . . . . . . . 7 . . . . Robots Built 2 | . . . . . . . . . . . . . . 2 Authchips . | . . . . . . . . . . . . . . . Time 81 | . . . . . . . . . . . . . . 81 Total Robot Build Rating 2 | . . . . . . . . . . . . . . 2 Part Schematics Acquired 12 | . . . . . . . . . . 12 . . . . Parts Built . | . . . . . . . . . . . . . . . Authchips . | . . . . . . . . . . . . . . . Time . | . . . . . . . . . . . . . . . Total Part Build Rating . | . . . . . . . . . . . . . . . Part Studies Acquired . | . . . . . . . . . . . . . . . Parts Repaired 1 | . . . . . . 1 . . . . . . . . Time 44 | . . . . . . 44 . . . . . . . . Parts Recycled . | . . . . . . . . . . . . . . . Recycled Matter . | . . . . . . . . . . . . . . . Retrieved Matter . | . . . . . . . . . . . . . . . Retrieved Components . | . . . . . . . . . . . . . . . Parts Scanalyzed . | . . . . . . . . . . . . . . . Part Schematics Acquired . | . . . . . . . . . . . . . . . Parts Damaged . | . . . . . . . . . . . . . . . Bothacking | -11 -10 -10 -10 -9 -8 -8 -7 -7 -7 -7 -6 -6 -6 -6 ------------ Run | Yrd Mat Min Exi Min Mat Sto Fac Low Low Dat Pro Fac Was Fac Used RIF Installer . | . . . . . . . . . . . . . . . Robots Hacked 1 | . . . . . . . 1 . . . . . . . Non-combat 1 | . . . . . . . 1 . . . . . . . Combat . | . . . . . . . . . . . . . . . Robot Hacks Applied 2 | . . . . . . . 2 . . . . . . . find_chute 2 | . . . . . . . 2 . . . . . . . Relay Couplers Released . | . . . . . . . . . . . . . . . Fabnet Peak Effective % . | . . . . . . . . . . . . . . . Robots Rewired . | . . . . . . . . . . . . . . . Allies Hacked . | . . . . . . . . . . . . . . . Hacks Repelled . | . . . . . . . . . . . . . . . Allies | -11 -10 -10 -10 -9 -8 -8 -7 -7 -7 -7 -6 -6 -6 -6 -------- Run | Yrd Mat Min Exi Min Mat Sto Fac Low Low Dat Pro Fac Was Fac Total Allies 8 | . . 3 . . . . . 2 . . 1 . . 2 Largest Group 3 | . . 3 3 3 2 . . 1 1 1 2 1 . 2 Highest-Rated Group 181 | . . 40 40 40 32 . . 85 85 85 181 80 . 16 Highest-Rated Ally 96 | . . 16 16 16 16 . . 85 85 85 96 80 . 8 Total Orders 4 | . . . . . . . . 2 2 . . . . . ROAM 2 | . . . . . . . . 1 1 . . . . . FOLLOW 1 | . . . . . . . . 1 . . . . . . EXPLORE 1 | . . . . . . . . . 1 . . . . . Ally Attacks 99 | . . . . 19 28 . . 12 12 . 24 4 . . Total Damage 2915 | . . . . 193 354 . . 578 540 . 1072 178 . . Kills 21 | . . . . 4 3 . . 5 4 . 3 2 . . Allies Corrupted . | . . . . . . . . . . . . . . . Allies Melted . | . . . . . . . . . . . . . . . Field Lobotomies 1 | . . . . . . . . 1 . . . . . . Intel | -11 -10 -10 -10 -9 -8 -8 -7 -7 -7 -7 -6 -6 -6 -6 ------- Run | Yrd Mat Min Exi Min Mat Sto Fac Low Low Dat Pro Fac Was Fac Active Infowar (turns) 902 | . . . 123 248 229 147 . . . . . . . 155 Optics 902 | . . . 123 248 229 147 . . . . . . . 155 Robot Analysis Total . | . . . . . . . . . . . . . . . Derelict Logs Recovered 3 | . . . . 1 . . . 1 . . 1 . . . Drone Launches 1 | . . . . . . . . . 1 . . . . . Drone Recoveries . | . . . . . . . . . . . . . . . Exploration | -11 -10 -10 -10 -9 -8 -8 -7 -7 -7 -7 -6 -6 -6 -6 ------------- Run | Yrd Mat Min Exi Min Mat Sto Fac Low Low Dat Pro Fac Was Fac Turns Passed 7244 | 48 92 152 268 248 258 814 906 1359 795 115 889 526 148 626 Spaces Moved 4542 | 42 53 113 219 191 119 466 691 576 338 90 574 457 168 445 Core 801 | 21 . . . . . 7 . 254 190 90 217 18 . 4 Treads 158 | . . . . . . . . 158 . . . . . . Legs 1311 | 21 53 113 219 191 30 14 . 146 148 . 357 19 . . Wheels 108 | . . . . . . 108 . . . . . . . . Hover 2164 | . . . . . 89 337 691 18 . . . 420 168 441 Flight . | . . . . . . . . . . . . . . . Fastest Speed 42 | 50 120 120 120 120 50 42 100 100 100 100 100 56 56 52 Average Speed 109 | 85 120 120 120 120 102 76 104 170 158 108 112 72 74 69 Slowest Speed 350 | 120 120 120 120 120 120 250 171 350 350 150 150 150 106 110 Overloaded Moves . | . . . . . . . . . . . . . . . Propulsion Burnouts . | . . . . . . . . . . . . . . . Robots Hopped . | . . . . . . . . . . . . . . . Potential Cave-ins . | . . . . . . . . . . . . . . . Cave-ins Triggered . | . . . . . . . . . . . . . . . Exploration Rate (%) 41 | 4 21 20 62 46 17 65 17 55 59 69 68 6 98 13 Regions Visited 14 Branch Regions 8 Pre-discovered Areas 2 | . . . . 1 . . . . . 1 . . . . Known Exits Taken 4 | . . . . . . 1 1 1 . . 1 . . . Unknown Exits Taken 8 | 1 1 1 1 1 1 . . . 1 1 . . . . Scrap Searched 4 | . . . . . . . . 2 . . 2 . . . Spaces Dug 7 | . . . . . . . . 2 2 . . . 3 . Terrain Destroyed 33 | . . . . . . 3 . 2 2 . . . 3 23 Melee 4 | . . . . . . . . 2 2 . . . . . Projectile 8 | . . . . . . 3 . . . . . . 3 2 AOE 21 | . . . . . . . . . . . . . . 21 Terrain Rammed . | . . . . . . . . . . . . . . . Walls Destroyed . | . . . . . . . . . . . . . . . Machines Disabled . | . . . . . . . . . . . . . . . Actions | -11 -10 -10 -10 -9 -8 -8 -7 -7 -7 -7 -6 -6 -6 -6 --------- Run | Yrd Mat Min Exi Min Mat Sto Fac Low Low Dat Pro Fac Was Fac Total 6222 | 55 65 130 224 198 188 749 781 911 585 107 797 621 179 632 Wait 987 | . . 12 2 2 20 96 15 237 221 17 195 116 2 52 Move 4529 | 41 52 112 218 190 118 465 690 575 337 89 573 457 167 445 Hop . | . . . . . . . . . . . . . . . Pick Up 39 | 7 4 1 2 . . 4 2 2 4 . 2 1 . 10 Fast Attach 98 | . . 1 . . 10 30 13 8 . . 7 12 6 11 Attach 29 | 5 . 1 1 . . 3 . 5 3 . . . . 11 Detach 8 | . . 1 . . . 1 . 3 . 1 . 1 . 1 Swap 11 | . 1 . . . . 3 3 3 . . . 1 . . Drop 55 | 2 . 2 1 . 7 18 8 2 . . 1 7 . 7 Fire 265 | . 8 . . 6 33 87 43 19 . . 10 . 4 55 Melee 135 | . . . . . . 5 7 57 20 . 9 23 . 14 Ram . | . . . . . . . . . . . . . . . Kick . | . . . . . . . . . . . . . . . Crush . | . . . . . . . . . . . . . . . Escape Stasis 66 | . . . . . . 37 . . . . . 3 . 26 Rewire . | . . . . . . . . . . . . . . . Trap . | . . . . . . . . . . . . . . . Miscellaneous . | . . . . . . . . . . . . . . . Route ------- -11/Scrapyard -10/Materials -10/Mines -10/Exiles -9/Mines -8/Materials -8/Storage -7/Factory (discovered 2 exits: *Fac / *Low) -7/Lower Caves -7/Lower Caves (discovered 2 exits: *Fac / *Dat) -7/Data Miner -6/Proximity Caves -6/Factory -6/Waste -6/Factory (discovered 1 exit: [*Fac]) History --------- Turn | Location | Event 7 | -11/Scrapyard | Discovered new exit (range 15) 49 | -11/Scrapyard | Entered Materials 105 | -10/Materials | Met 8R-AWN 105 | -10/Materials | Discovered new exit (range 7) 141 | -10/Materials | Entered Mines 142 | -10/Mines | Assembled infested the area 143 | -10/Mines | Followed 8R-AWN into the Mines 145 | -10/Mines | Assisted by bots powering up and referring to "LRC-V3" 198 | -10/Mines | Met a Derelict bent on vengeance 213 | -10/Mines | Discovered new exit (range 5) 229 | -10/Mines | Found the Drone Emporium 239 | -10/Mines | Found Prototype Device 240 | -10/Mines | Identified Decoy Drone Bay 293 | -10/Mines | Entered Exiles 293 | -10/Exiles | Accompanied by 3 allies 317 | -10/Exiles | Build established: Mutant 322 | -10/Exiles | Welcomed by 8R-AWN 343 | -10/Exiles | Met EX-HEX 376 | -10/Exiles | Met EX-BIN 393 | -10/Exiles | Aligned with FarCom system 394 | -10/Exiles | Given EX-Vault access code 422 | -10/Exiles | Opened EX-Vault 431 | -10/Exiles | Found Field Lobotomy Kit 439 | -10/Exiles | Found Longsword +1 466 | -10/Exiles | Warned to stay clear of 0b10 Research branches 497 | -10/Exiles | Met EX-DEC 542 | -10/Exiles | Discovered new exit (range 14) 561 | -10/Exiles | Stole two prototypes: Field Lobotomy Kit, Longsword +1 561 | -10/Exiles | Entered Mines 561 | -9/Mines | Accompanied by 3 allies 616 | -9/Mines | Learned location of Storage (-8) 676 | -9/Mines | Learned Materials garrison access intel 795 | -9/Mines | Discovered new exit (range 13) 809 | -9/Mines | Entered Materials 809 | -8/Materials | Accompanied by 2 allies 809 | -8/Materials | Evolved 4 slots: Propulsion x2, Utility x2 810 | -8/Materials | Loaded intel: 1 garrison access location 1004 | -8/Materials | Discovered new exit (range 17) 1067 | -8/Materials | Entered Storage 1069 | -8/Storage | FarCom data flow suspended 1417 | -8/Storage | Lost 6 parts (1p2n2u1w) 1468 | -8/Storage | Core integrity fell below 50% 1547 | -8/Storage | Build established: Scavenger-Mutant 1633 | -8/Storage | Destroyed 7 combat bots 1688 | -8/Storage | Core integrity fell below 20% 1744 | -8/Storage | Repaired Hvy. Laser 1805 | -8/Storage | Discovered new exit (range 14) 1867 | -8/Storage | First assault squad dispatched 1875 | -8/Storage | Lost 3 parts (1n1u1w) 1880 | -8/Storage | Build established: Mutant 1880 | -8/Storage | Identified exit to Factory 1881 | -8/Storage | Entered Factory 1881 | -7/Factory | Evolved 2 slots: Utility x2 2424 | -7/Factory | Discovered new exit (range 7) 2437 | -7/Factory | Identified exit to Factory 2742 | -7/Factory | Discovered new exit (range 14) 2785 | -7/Factory | Identified exit to Lower Caves 2787 | -7/Factory | Entered Lower Caves 2828 | -7/Lower Caves | Attracted the attention of an 0b10 checkpoint 2874 | -7/Lower Caves | Lost 3 parts (1n1u1w) 3703 | -7/Lower Caves | Lost 3 parts (1p1n1u) 3743 | -7/Lower Caves | Spotted B-75 Beast 3760 | -7/Lower Caves | Assimilated B-75 Beast with FLK Orb 3915 | -7/Lower Caves | Attracted the attention of an 0b10 outpost 3953 | -7/Lower Caves | Identified exit to Lower Caves 4103 | -7/Lower Caves | Core integrity fell below 50% 4146 | -7/Lower Caves | Entered another Lower Caves area 4146 | -7/Lower Caves | Accompanied by 1 ally 4227 | -7/Lower Caves | Discovered exit to Factory (range 7) 4476 | -7/Lower Caves | Attracted the attention of an 0b10 checkpoint 4513 | -7/Lower Caves | Core integrity fell below 20% 4532 | -7/Lower Caves | Lost 3 parts (1p2n) 4638 | -7/Lower Caves | Discovered new exit (range 48) 4771 | -7/Lower Caves | Encountered a Master Thief 4771 | -7/Lower Caves | Encountered a Master Thief 4771 | -7/Lower Caves | Encountered a Master Thief 4772 | -7/Lower Caves | Encountered a Master Thief 4774 | -7/Lower Caves | Encountered a Master Thief 4775 | -7/Lower Caves | Longsword +1 stolen by Master Thief 4775 | -7/Lower Caves | Field Lobotomy Kit stolen by Master Thief 4777 | -7/Lower Caves | Microactuators stolen by Master Thief 4778 | -7/Lower Caves | Decoy Drone Bay stolen by Master Thief 4783 | -7/Lower Caves | Coolant Injector stolen by Master Thief 4839 | -7/Lower Caves | Attacked by a delusional Derelict stockpiling parts 4941 | -7/Lower Caves | Entered Data Miner 4941 | -7/Data Miner | Accompanied by 1 ally 4941 | -7/Data Miner | Discovered new exit (range 6) 4969 | -7/Data Miner | Met Data Miner 4988 | -7/Data Miner | Learned location of Section 7 (-3) 4988 | -7/Data Miner | Acquired the access code to Warlord's prototype stash 5008 | -7/Data Miner | Received God Mode back door access code from Data Miner 5056 | -7/Data Miner | Entered Proximity Caves 5056 | -6/Proximity Caves | Accompanied by 1 ally 5091 | -6/Proximity Caves | Escorted by Enhanced Grunt 5441 | -6/Proximity Caves | Learned Factory garrison access intel 5564 | -6/Proximity Caves | Spotted B-75 Beast 5726 | -6/Proximity Caves | Discovered exit to Factory (range 14) 5923 | -6/Proximity Caves | Build established: Scavenger-Mutant 5945 | -6/Proximity Caves | Entered Factory 5945 | -6/Factory | Accompanied by 1 ally 5945 | -6/Factory | Evolved 2 slots: Propulsion x1, Utility x1 5946 | -6/Factory | Loaded intel: 4 garrison access locations 6274 | -6/Factory | Build established: Mutant 6471 | -6/Factory | Sucked down chute 6471 | -6/Factory | Entered Waste 6486 | -6/Waste | EMP discharged 6488 | -6/Waste | Spotted C-40 Crusher 6509 | -6/Waste | Spotted C-40 Crusher 6542 | -6/Waste | Spotted C-40 Crusher 6550 | -6/Waste | Crushed by Compactor (1 part destroyed, 2 dropped) 6550 | -6/Waste | Spotted C-40 Crusher 6553 | -6/Waste | Crushed by Compactor (0 parts destroyed, 1 dropped) 6557 | -6/Waste | Spotted C-40 Crusher 6559 | -6/Waste | Spotted C-40 Crusher 6566 | -6/Waste | Crushed by Compactor (1 part destroyed, 1 dropped) 6567 | -6/Waste | Crushed by Compactor (1 part destroyed, 2 dropped) 6569 | -6/Waste | Crushed by Compactor (1 part destroyed) 6586 | -6/Waste | EMP discharged 6587 | -6/Waste | Discovered new exit (range 15) 6600 | -6/Waste | Lost 5 parts (5u) 6619 | -6/Waste | Entered Factory 6826 | -6/Factory | Found Prototype Processor 6826 | -6/Factory | Identified Exp. Targeting Computer 6835 | -6/Factory | Found Faulty Exp. Targeting Computer 6894 | -6/Factory | Discovered new exit (range 10) 6898 | -6/Factory | Garrison activated, responded to threat 6959 | -6/Factory | Identified exit to Garrison 6976 | -6/Factory | Fabricated R-06 Scavenger (x2) 7037 | -6/Factory | Core integrity fell below 50% 7078 | -6/Factory | Lost 3 parts (1n2w) 7223 | -6/Factory | Core integrity fell below 20% 7245 | -6/Factory | Destroyed by H-61 Shepherd with Heavy Assault Cannon Last Messages --------------- Slug penetrates Wall. Scythe destroyed. K-01 Serf collects debris. R-10 Processor collects Wheel. ALERT: Suspicious intruders detected, dispatching Cutter reinforcements to area. Phase Shifter destroyed. R-10 Processor collects Sml. Matter Pod. K-01 Serf collects debris. Gauss Rifle destroyed. Lgt. Fission Core destroyed. Penetrated by Slug. Slug penetrates K-01 Serf. K-01 Serf collects debris. System corrupted: Substantial component data lost. Gravmag Array destroyed. Matter Compressor blasted off. R-10 Processor collects Flexi-carbon Leg. Penetrated by Slug. Map ----- +----------------------------------------------------+ | ?+ """ + !! #?????????????????????? | | ?# # ! #?????????????????????? | | ?# # ! #?????????????????????? | | ?## # #?????????????????????? | | ??# # #?????????????????????? | | ??# # #?????????????????????? | | ??# ########################???????????????????? | | ??# #??????????# #???????????????????? | | ??# #??????????# """ """ #???????????????????? | | ### #??????????# """ """ #???????????????????? | | # #??????????# """ """ #???????????????????? | | " # #??????????# #???????????????????? | | " # #???????????? ?????????????????????? | | " # #?????????????? %???????????????????????? | | # #################+###??????????????????????? | | " + %#??????????????????????? | | "%# #??????????????????????? | | # RRu #??????????????????????? | | ##################### k #??????????????????????? | | #???????????????????# hu;??????????????????????? | | #?????????????????? + %#??????????????????????? | | #?????????????????" # %!#??????????????????????? | | ###????????????????"" # #??????????????????????? | | ??????????????????"""?# #??????????????????????? | | ????????????????? ??# % #??????????????????????? | | ??????????????? ??# @#??????????????????????? | | ???????????????####???# #??????????????????????? | | ??????????????????????#k #??????????????????????? | | ????????????????????? ??????????????????????? | | ????????????????????# ??????????????????????? | | ????????????????????# ??????????????????????? | | ????????????????????+ H ?????????????????????? | | ????????????????????# ?????????????????????? | | ????????????????????# ?????????????????????? | | ????????????????????# k #????????????????????? | | ????????????????????## ##????????????????????? | | ?????????????????????# #?????????????????????? | | ?????????????????????# #?????????????????????? | | ?????????????????????# #?????????????????????? | | ?????????????????????# #?????????????????????? | | ?????????????????????# #?????????????????????? | | ?????????????????????# #?????????????????????? | | ?????????????????????# #?????????????????????? | | ?????????????????????# ??????????????????????? | | ?????????????????????# ??????????????????????? | | ?????????????????????# ??????????????????????? | | ??????????????????????? ??????????????????????? | | ?????????????????????????????????????????????????? | | ?????????????????????????????????????????????????? | | ?????????????????????????????????????????????????? | +----------------------------------------------------+ Best States ------------- Heat Dissipation 62 Coolant Potential 65 Energy Generation 18 Energy Capacity 640 Matter Stores 550 Matter Capacity 550 Sight Range 22 Terrain Scan Density 10 EM Shielding 2 Corruption Block 8 Armor Coverage 450 Resistance: TH 15 Resistance: EM 25 Melee Speed Boost 40 Phase Shifting 10 Evasion (%) 63 Core Analysis 6 Armor Integrity Analysis 30 Recoil Reduction 1 Offensive Hacking 12 Item Schematics ----------------- Combat Drone Bay | -7/Data Miner | Free Lgt. Regenerative Plating | -7/Data Miner | Free Multireflex Exoskeleton | -7/Data Miner | Free Gravity Neutralizer | -7/Data Miner | Free Shock Maul | -7/Data Miner | Free Arm. Medium Treads | -7/Data Miner | Free Imp. Component Analysis Suite | -7/Data Miner | Free Imp. Remote Datajack | -7/Data Miner | Free Disruptor Cannon | -7/Data Miner | Free Imp. Recalibrator | -7/Data Miner | Free Proton Cannon | -7/Data Miner | Free Adv. Transmission Jammer | -7/Data Miner | Free Robot Schematics ------------------ H-55 Commando | -7/Data Miner | Free W-25 Informer | -7/Data Miner | Free M-14 Sweeper | -7/Data Miner | Free S-27 Virus | -7/Data Miner | Free B-60 Warrior | -7/Data Miner | Free L-41 Fighter | -7/Data Miner | Free G-50 Soldier | -7/Data Miner | Free Fabricated ------------ R-06 Scavenger | x2 | -6/Factory | Preloaded Repaired ---------- Hvy. Laser | 16% | -8/Storage Studied --------- None Alien Tech Used ----------------- None Achievements -------------- Consequences Follow The Leader Morally Flexible Challenges ------------ None Game ------ Seed BurstSlugThermoblaster Manual? 0 Play Time 00:55:37 Cumulative 238.6 hours Start 2026.02.14 @ 10:53:29 End 2026.02.14 @ 11:48:17 Sessions 1 Manual Loads 0 Difficulty Rogue Special Mode None Game No. 654 Rogue 653 Adventurer 1 Explorer 0 Win Type - Total 0 Types 0/0/0/0/0/0/0/0/0/0 Lore% 65 Gallery% 61 Achievement% 40 Wizard Run 0 Options --------- Layout 1 ASCII 0 Keyboard 0 Movement Mouse Keybinds 0 Fullscreen 1 Font 24/Smallcaps Map View 50x35 Zoom Use 0% Tactical HUD 0 Map Filters NONE Filters NONE Steam 1 RUN: edec310d-8244-4c74-ae6b-04e4a2d9ab39